{"text_format":"3","workbook":"xlsx","n_sheets":4,"sheets":["Dòng Tiền","Thu nhập Hàng tháng","Chi phí Hàng tháng","DỮ LIỆU BIỂU ĐỒ"],"not_rendered":{"charts":1,"defined_names":10},"read":"whole","date_system":"1900"}

{"sheet":"Dòng Tiền","index":0,"n_rows":9,"n_cols":5,"rows_kept":9}
[null,"Tên"]
[null,"Ngân sách Gia đình"]
[null,{"$f":"TEXT(TODAY(),\"mmmm\")","v":"Tháng Giêng"}]
[null,{"$f":"YEAR(TODAY())","v":2017}]
[null,"Lưu ý: Bảng dòng tiền được tự động tính theo mục nhập từ các trang tính Thu nhập Hàng tháng và Chi phí Hàng tháng"]
[null,"Dòng Tiền","Theo kế hoạch","Thực tại","Phương sai"]
[null,"Tổng Thu nhập",{"$f":"Thu_nhập[[#Totals],[Theo kế hoạch]]","v":{"v":5700,"d":"5,700"}},{"$f":"Thu_nhập[[#Totals],[Thực tại]]","v":{"v":5500,"d":"5,500"}},{"$f":"Thu_nhập[[#Totals],[Phương sai]]","v":-200}]
[null,"Tổng Chi phí",{"$f":"Chi_phí[[#Totals],[Theo kế hoạch]]","v":{"v":3603,"d":"3,603"}},{"$f":"Chi_phí[[#Totals],[Thực tại]]","v":{"v":3655,"d":"3,655"}},{"$f":"Chi_phí[[#Totals],[Phương sai]]","v":-52}]
[null,"Tổng Tiền mặt",{"$f":"C7-C8","v":{"v":2097,"d":"2,097"}},{"$f":"D7-D8","v":{"v":1845,"d":"1,845"}},{"$f":"SUBTOTAL(109,Dòng_Tiền[Phương sai])","v":-252}]

{"sheet":"Thu nhập Hàng tháng","index":1,"n_rows":9,"n_cols":5,"rows_kept":9}
[null,{"$f":"Tên","v":"Tên"}]
[null,{"$f":"Tiêu_đề_Ngân_sách","v":"Ngân sách Gia đình"}]
[null,{"$f":"Tháng","v":"Tháng Giêng"}]
[null,{"$f":"Năm","v":2017}]
[null,"Thu nhập Hàng tháng","Theo kế hoạch","Thực tại","Phương sai"]
[null,"Thu nhập 1",{"v":4000,"d":"4,000"},{"v":4000,"d":"4,000"},{"$f":"Thu_nhập[[#This Row],[Thực tại]]-Thu_nhập[[#This Row],[Theo kế hoạch]]","v":0}]
[null,"Thu nhập 2",{"v":1400,"d":"1,400"},{"v":1500,"d":"1,500"},{"$f":"Thu_nhập[[#This Row],[Thực tại]]-Thu_nhập[[#This Row],[Theo kế hoạch]]","v":100}]
[null,"Thu nhập Khác",300,0,{"$f":"Thu_nhập[[#This Row],[Thực tại]]-Thu_nhập[[#This Row],[Theo kế hoạch]]","v":-300}]
[null,"Tổng Thu nhập",{"$f":"SUBTOTAL(109,Thu_nhập[Theo kế hoạch])","v":{"v":5700,"d":"5,700"}},{"$f":"SUBTOTAL(109,Thu_nhập[Thực tại])","v":{"v":5500,"d":"5,500"}},{"$f":"SUBTOTAL(109,Thu_nhập[Phương sai])","v":-200}]

{"sheet":"Chi phí Hàng tháng","index":2,"n_rows":26,"n_cols":5,"rows_kept":26}
[null,{"$f":"Tên","v":"Tên"}]
[null,{"$f":"Tiêu_đề_Ngân_sách","v":"Ngân sách Gia đình"}]
[null,{"$f":"Tháng","v":"Tháng Giêng"}]
[null,{"$f":"Năm","v":2017}]
[null,"Chi phí Hàng tháng","Theo kế hoạch","Thực tại","Phương sai"]
[null,"Nhà ở",{"v":1500,"d":"1,500"},{"v":1500,"d":"1,500"},{"$f":"Chi_phí[[#This Row],[Theo kế hoạch]]-Chi_phí[[#This Row],[Thực tại]]","v":0}]
[null,"Tạp phẩm",250,280,{"$f":"Chi_phí[[#This Row],[Theo kế hoạch]]-Chi_phí[[#This Row],[Thực tại]]","v":-30}]
[null,"Điện thoại",38,38,{"$f":"Chi_phí[[#This Row],[Theo kế hoạch]]-Chi_phí[[#This Row],[Thực tại]]","v":0}]
[null,"Điện / Khí đốt",65,78,{"$f":"Chi_phí[[#This Row],[Theo kế hoạch]]-Chi_phí[[#This Row],[Thực tại]]","v":-13}]
[null,"Nước / Nước thải / Rác",25,21,{"$f":"Chi_phí[[#This Row],[Theo kế hoạch]]-Chi_phí[[#This Row],[Thực tại]]","v":4}]
[null,"Truyền hình Cáp",75,83,{"$f":"Chi_phí[[#This Row],[Theo kế hoạch]]-Chi_phí[[#This Row],[Thực tại]]","v":-8}]
[null,"Internet",60,60,{"$f":"Chi_phí[[#This Row],[Theo kế hoạch]]-Chi_phí[[#This Row],[Thực tại]]","v":0}]
[null,"Bảo trì / Sửa chữa",0,60,{"$f":"Chi_phí[[#This Row],[Theo kế hoạch]]-Chi_phí[[#This Row],[Thực tại]]","v":-60}]
[null,"Chăm sóc trẻ em",180,150,{"$f":"Chi_phí[[#This Row],[Theo kế hoạch]]-Chi_phí[[#This Row],[Thực tại]]","v":30}]
[null,"Học phí",250,250,{"$f":"Chi_phí[[#This Row],[Theo kế hoạch]]-Chi_phí[[#This Row],[Thực tại]]","v":0}]
[null,"Vật nuôi",75,80,{"$f":"Chi_phí[[#This Row],[Theo kế hoạch]]-Chi_phí[[#This Row],[Thực tại]]","v":-5}]
[null,"Phương tiệ̣n đi lại",280,260,{"$f":"Chi_phí[[#This Row],[Theo kế hoạch]]-Chi_phí[[#This Row],[Thực tại]]","v":20}]
[null,"Chăm sóc Cá nhân",75,65,{"$f":"Chi_phí[[#This Row],[Theo kế hoạch]]-Chi_phí[[#This Row],[Thực tại]]","v":10}]
[null,"Bảo hiểm",255,255,{"$f":"Chi_phí[[#This Row],[Theo kế hoạch]]-Chi_phí[[#This Row],[Thực tại]]","v":0}]
[null,"Thẻ Tín dụng",100,100,{"$f":"Chi_phí[[#This Row],[Theo kế hoạch]]-Chi_phí[[#This Row],[Thực tại]]","v":0}]
[null,"Khoản vay",0,0,{"$f":"Chi_phí[[#This Row],[Theo kế hoạch]]-Chi_phí[[#This Row],[Thực tại]]","v":0}]
[null,"Thuế",0,0,{"$f":"Chi_phí[[#This Row],[Theo kế hoạch]]-Chi_phí[[#This Row],[Thực tại]]","v":0}]
[null,"Quà tặng / Từ thiện",150,150,{"$f":"Chi_phí[[#This Row],[Theo kế hoạch]]-Chi_phí[[#This Row],[Thực tại]]","v":0}]
[null,"Tiết kiệm",225,225,{"$f":"Chi_phí[[#This Row],[Theo kế hoạch]]-Chi_phí[[#This Row],[Thực tại]]","v":0}]
[null,"Khác",0,0,{"$f":"Chi_phí[[#This Row],[Theo kế hoạch]]-Chi_phí[[#This Row],[Thực tại]]","v":0}]
[null,"Tổng",{"$f":"SUBTOTAL(109,Chi_phí[Theo kế hoạch])","v":{"v":3603,"d":"3,603"}},{"$f":"SUBTOTAL(109,Chi_phí[Thực tại])","v":{"v":3655,"d":"3,655"}},{"$f":"SUBTOTAL(109,Chi_phí[Phương sai])","v":-52}]

{"sheet":"DỮ LIỆU BIỂU ĐỒ","index":3,"n_rows":6,"n_cols":4,"rows_kept":6,"hidden":true}
[null,"DỮ LIỆU BIỂU ĐỒ"]
[]
[null,null,"Theo kế hoạch","Thực tại"]
[null,"Dòng Tiền",{"$f":"Dòng_Tiền[[#Totals],[Theo kế hoạch]]","v":2097},{"$f":"Dòng_Tiền[[#Totals],[Thực tại]]","v":1845}]
[null,"Thu nhập Hàng tháng",{"$f":"Thu_nhập[[#Totals],[Theo kế hoạch]]","v":5700},{"$f":"Thu_nhập[[#Totals],[Thực tại]]","v":5500}]
[null,"Chi phí Hàng tháng",{"$f":"Chi_phí[[#Totals],[Theo kế hoạch]]","v":3603},{"$f":"Chi_phí[[#Totals],[Thực tại]]","v":3655}]